Cogmind - Beta 16 @@@ ROGUE MODE // 2025.10.28 @ 19:41:40 Player: opdo Result: Destroyed by Y-72 Warden with Railgun Performance ------------- Evolutions (8) 4000 Regions Visited (20) 4000 Robots Destroyed (276) 1380 Value Destroyed (11818) 11818 Prototype IDs (19) 380 Alien Tech Used (0) 0 Bonus (6464) 6464 TOTAL SCORE: 28042 Bonus ------- Triggered High Security 500 High Alert Combat Kills 1087 Follower Combat Kills 2399 Met R17 at Cetus 500 Met R17 at Research 2000 Friendly Fire -22 Cogmind --------- Core Integrity 0/1450 Matter 56/300 Energy 64/100 System Corruption 17% Temperature Cool (10) Movement Core (50) Location -2/Research Parts ------- > --- POWER (3) -------- (None) > --- PROPULSION (6) --- (None) > --- UTILITY (10) ----- (None) > --- WEAPON (4) ------- (None) > --- INVENTORY (5) ---- Flexi-carbon Leg Peak State ------------ > --- POWER ------------ Light Particle Reactor Cooled Antimatter Reactor Light Quantum Reactor > --- PROPULSION ------- Medium Treads Armored Medium Treads Heavy Treads Heavy Treads > --- UTILITY ---------- Huge Storage Unit Advanced Energy Well High-capacity Matter Pod Advanced Visual Processing Unit Improved Target Analyzer Layered Medium Armor Plating Layered Heavy Armor Plating System Restoration Module Mini Drone Bay > --- WEAPON ----------- Coil Gun Railgun Mass Driver Linear Accelerator > --- INVENTORY -------- Light Antimatter Reactor Particle Reactor Quantum Reactor Medium Treads Medium Treads Flexi-carbon Leg Flexi-carbon Leg Flexi-carbon Leg Flexi-carbon Leg Myomer Leg Improved Thunder Leg Impulse Thruster Array Impulse Thruster Array Advanced Heat Sink Advanced Melee Analysis Suite Improved Medium Armor Plating Railgun Mass Driver Mass Driver Tactical Quantum Warhead Tactical Quantum Warhead Great Axe Great Axe [Rating: 146] Favorites ----------- Power Cooled Ion Engine Engine Cooled Ion Engine Power Core Micro Nuclear Core Reactor Quantum Reactor Propulsion Light Treads Treads Light Treads Leg Improved Carbon-fiber Leg Wheel Centrium Wheel Flight Unit Impulse Thruster Array Utility Huge Storage Unit Device Weapon Mount Storage Huge Storage Unit Processor Targeting Computer Hackware Improved Hacking Suite Protection Centrium Medium Armor Plating Weapon Assault Cannon Energy Gun Field Laser Ballistic Gun Advanced KE Penetrator Ballistic Cannon Assault Cannon Launcher Heavy Shock Bomb Launcher Impact Weapon Mace Slashing Weapon Great Axe Piercing Weapon Heavy Pick Build | -11 -10 -10 -9 -9 -8 -8 -8 -6 -6 -6 -5 -5 -5 -5 -5 -4 -4 -4 -3 -2 ------- Run | Yrd Mat Min Mat Min Mat Sto Rec Fac Low Low Fac Ext Cet Arc Hub Fac Was Fac Res Res Slots Evolved 16 | . . . 2 . 2 . . 4 . . 2 . . . . 2 . . 2 2 Power 2 | . . . . . . . . 1 . . . . . . . . . . . 1 Propulsion 4 | . . . 1 . 1 . . . . . 1 . . . . . . . 1 . Utility 8 | . . . 1 . 1 . . 3 . . 1 . . . . 1 . . 1 . Weapon 2 | . . . . . . . . . . . . . . . . 1 . . . 1 Parts Attached 237 | 7 8 5 18 4 12 8 . 45 6 . 27 24 5 1 9 3 7 14 19 15 Power 30 | 1 1 1 3 . . . . 6 . . 2 4 1 . 2 1 . 3 3 2 Engine 12 | 1 1 1 3 . . . . 4 . . 1 1 . . . . . . . . Core 9 | . . . . . . . . 2 . . 1 3 . . 2 . . 1 . . Reactor 9 | . . . . . . . . . . . . . 1 . . 1 . 2 3 2 Propulsion 69 | 2 2 2 3 3 6 5 . 12 1 . 9 5 2 . 1 . 1 6 6 3 Treads 43 | 2 2 2 3 3 5 5 . 1 . . 1 5 2 . 1 . . 5 5 1 Leg 23 | . . . . . 1 . . 11 1 . 8 . . . . . 1 . 1 . Wheel 1 | . . . . . . . . . . . . . . . . . . 1 . . Hover . | . . . . . . . . . . . . . . . . . . . . . Flight 2 | . . . . . . . . . . . . . . . . . . . . 2 Utility 81 | 2 3 . 5 . 3 1 . 18 4 . 13 10 1 . 4 1 3 2 7 4 Device 29 | 1 2 . . . . . . 8 1 . 4 4 . . 2 1 2 . 4 . Storage 5 | 1 1 . 1 . . . . . . . . . . . . . . . 1 1 Processor 11 | . . . 1 . . . . 4 . . 2 2 . . 1 . . 1 . . Hackware 3 | . . . . . . . . 1 . . 2 . . . . . . . . . Protection 33 | . . . 3 . 3 1 . 5 3 . 5 4 1 . 1 . 1 1 2 3 Artifact . | . . . . . . . . . . . . . . . . . . . . . Weapon 57 | 2 2 2 7 1 3 2 . 9 1 . 3 5 1 1 2 1 3 3 3 6 Energy Gun 2 | . . . . . . . . . . . . . . . . . 2 . . . Energy Cannon . | . . . . . . . . . . . . . . . . . . . . . Ballistic Gun 27 | 2 1 2 2 . . 1 . 3 . . 2 3 1 1 2 1 1 2 2 1 Ballistic Cannon 18 | . 1 . 4 1 2 . . 4 1 . 1 1 . . . . . . 1 2 Launcher 5 | . . . . . 1 . . 1 . . . 1 . . . . . 1 . 1 Special Weapon . | . . . . . . . . . . . . . . . . . . . . . Impact Weapon 1 | . . . 1 . . . . . . . . . . . . . . . . . Slashing Weapon 2 | . . . . . . . . . . . . . . . . . . . . 2 Piercing Weapon 2 | . . . . . . 1 . 1 . . . . . . . . . . . . Special Melee Weapon . | . . . . . . . . . . . . . . . . . . . . . Unidentified Prototypes 15 | . . . 1 . . 1 . 4 . . 1 . 3 . 1 . 1 . 1 2 Parts Lost 117 | . 4 1 2 3 6 3 . 24 2 . 8 13 . . 3 2 . 19 2 25 Power 16 | . 1 1 . . . . . 4 1 . 1 1 . . . 1 . 3 . 3 Propulsion 36 | . 1 . 1 2 3 1 . 5 . . 3 3 . . . 1 . 7 1 8 Utility 42 | . . . 1 . 2 1 . 12 1 . 3 7 . . 1 . . 5 1 8 Weapon 23 | . 2 . . 1 1 1 . 3 . . 1 2 . . 2 . . 4 . 6 Highest Loss Streak 24 | . 2 1 1 3 2 3 . 4 1 . 3 7 . . 2 1 . 19 2 24 To Critical Strikes 3 | . . . . . . . . . . . . . . . . . . 2 . 1 Average Backups 21 | 1 12 15 18 24 24 24 24 22 23 24 24 24 24 23 22 22 21 18 14 19 Power 2 | . . . . 3 3 2 2 2 2 2 1 2 2 2 2 1 1 1 . 2 Propulsion 5 | 1 3 4 3 2 . 3 5 7 9 10 9 6 6 5 6 5 4 4 5 8 Utility 5 | . 4 5 6 9 8 10 10 6 3 3 5 3 2 3 3 5 5 4 2 2 Weapon 8 | . 3 5 7 10 11 8 7 7 8 9 8 11 12 12 11 10 9 7 6 6 Tool/Special . | . . . . . . . . . . . . . . . . . . . . . Unused Backups 90 | . 1 1 4 3 10 6 3 9 2 . 4 7 9 4 2 1 6 2 5 11 Power 12 | . . . . . 1 1 . 4 . . . . 3 1 . . . . 1 1 Propulsion 29 | . 1 1 . 1 . 1 1 3 . . 3 2 3 . 2 . 2 . 3 6 Utility 10 | . . . . 2 2 2 . . 1 . . 1 1 . . . . . . 1 Weapon 39 | . . . 4 . 7 2 2 2 1 . 1 4 2 3 . 1 4 2 1 3 Tool/Special . | . . . . . . . . . . . . . . . . . . . . . Average Slot Usage (%) 92 | . 98 98 98 99 95 98 100 83 97 93 92 95 89 88 87 89 93 90 76 74 Engine 5 | . 13 12 11 11 9 9 9 7 4 . . 5 5 5 2 . . . . . Core 1 | . . . . . . . . . 6 6 6 4 . . 2 5 5 4 . . Reactor 1 | . . . . . . . . . . . . . 4 5 5 4 5 4 5 10 Treads 19 | . 27 28 32 32 33 35 36 6 . . . 17 18 17 17 16 20 20 15 14 Leg 6 | . . . . . . . . 11 26 26 28 11 . . . . . . 1 . Device 9 | . 14 14 1 . 3 3 . 12 8 6 9 10 11 11 11 15 16 15 14 8 Storage 7 | . 14 14 11 11 9 9 9 6 6 6 5 5 5 5 5 5 5 5 8 10 Processor 11 | . . . 10 11 9 9 9 15 15 13 8 11 17 17 17 15 13 13 12 7 Hackware 1 | . . . . . . . . . 6 6 10 1 . . . . . . . . Protection 8 | . . . 8 11 12 14 18 7 7 13 6 10 11 11 10 9 10 10 3 5 Ballistic Gun 6 | . 26 14 7 . . . . 2 . . . 5 9 11 11 15 15 14 6 9 Ballistic Cannon 8 | . 1 14 13 22 18 16 18 8 12 13 7 2 1 . . . . . 3 4 Peak Build Rating 146 | 9 9 9 20 24 30 34 31 72 68 63 85 94 124 126 130 143 141 141 117 146 Average Rating 65 | 5 7 8 15 20 26 30 31 56 65 63 77 88 118 124 127 139 138 134 99 120 On Entrance 63 | . 9 8 9 20 24 28 31 31 62 63 63 85 94 124 125 127 138 141 33 117 Avg Prop Armor Cover (%) 5 | . . . . . 3 . . 6 . . . . . . . . . 13 5 . Naked Turns 11 | . . . . . . . . . . . . . . . . . . . . 11 Heaviest Build 197 | 12 30 30 103 103 106 106 106 123 116 111 130 143 145 143 146 153 156 162 156 197 Greatest Support 196 | 40 40 40 60 68 91 91 88 96 72 72 93 138 187 187 187 187 161 161 196 195 Greatest Overweight (x) 9 | . 1 . 1 1 1 1 1 3 1 1 2 2 . . . 1 . 9 1 1 Average Overweight (x) . | . . . . 1 1 1 1 1 1 1 1 . . . . . . . . . Largest Inventory Capacity 25 | 8 15 15 25 25 25 25 25 25 25 25 25 25 25 25 25 25 25 25 25 25 Average Capacity 23 | 7 14 15 20 25 25 25 25 25 25 25 25 25 25 25 25 25 25 25 25 22 Most Carried 25 | 3 15 15 25 25 25 25 25 25 25 25 25 25 25 25 25 25 25 25 25 25 Average Carried 22 | 1 12 14 18 24 24 24 24 23 24 25 24 24 24 24 24 24 24 24 16 21 Final Capacity 25 | 8 15 15 25 25 25 25 25 25 25 25 25 25 25 25 25 25 25 25 25 5 Final Carried 25 | 3 15 15 25 25 25 25 25 25 25 25 24 25 25 25 25 25 25 15 25 1 Class Distribution -------------------- 54% | Mutant 14% | Scavenger-Tank 13% | Scavenger-Mutant 8% | Hacker-Mutant 8% | Commander-Mutant Dominant Class ---------------- Mutant | -10/Materials Mutant | -10/Mines Scavenger-Mutant | -9/Materials Mutant | -9/Mines Mutant | -8/Materials Mutant | -8/Storage Mutant | -8/Recycling Mutant | -6/Factory Mutant | -6/Lower Caves Mutant | -6/Lower Caves Hacker-Mutant | -5/Factory Mutant | -5/Extension Commander-Mutant | -5/Cetus Commander-Mutant | -5/Archives Scavenger-Mutant | -5/Hub_04(d) Scavenger-Tank | -4/Factory Scavenger-Tank | -4/Waste Scavenger-Tank | -4/Factory Scavenger-Tank | -3/Research Scavenger-Tank | -2/Research Resources | -11 -10 -10 -9 -9 -8 -8 -8 -6 -6 -6 -5 -5 -5 -5 -5 -4 -4 -4 -3 -2 ----------- Run | Yrd Mat Min Mat Min Mat Sto Rec Fac Low Low Fac Ext Cet Arc Hub Fac Was Fac Res Res Matter Collected 9873 | 233 514 123 397 361 574 538 257 1395 414 . 770 1300 210 97 841 235 186 503 704 221 Remotely 1394 | . . . . . . . . 434 . . 458 502 . . . . . . . . Salvage Created 10639 | 29 610 254 576 113 731 752 105 1462 276 . 647 1501 242 101 1531 306 . 816 274 313 Parts 521 | 3 30 24 42 10 47 37 2 65 12 . 31 63 12 3 66 18 . 34 13 9 Haulers Intercepted 16 | . 2 . 1 . 3 4 . 3 . . . . . . 2 . . 1 . . Recyclers Shooed 5 | . 3 . . . . . . 2 . . . . . . . . . . . . Parts Field Recycled . | . . . . . . . . . . . . . . . . . . . . . Retrieved Matter . | . . . . . . . . . . . . . . . . . . . . . Parts Self-Destructed 7 | . . . . . . . . . 7 . . . . . . . . . . . Prevented . | . . . . . . . . . . . . . . . . . . . . . Parts Restored . | . . . . . . . . . . . . . . . . . . . . . Kills | -11 -10 -10 -9 -9 -8 -8 -8 -6 -6 -6 -5 -5 -5 -5 -5 -4 -4 -4 -3 -2 ------- Run | Yrd Mat Min Mat Min Mat Sto Rec Fac Low Low Fac Ext Cet Arc Hub Fac Was Fac Res Res Combat Hostiles Destroyed 227 | . 13 8 19 8 21 18 1 34 9 . 22 21 4 1 20 3 . 12 5 8 Melee 19 | . . . . 1 . 2 . 5 . . 4 6 . . . . . . . 1 Guns 74 | . 13 3 4 . . . . 3 . . . 11 2 1 20 3 . 10 2 2 Cannons 123 | . . 5 15 7 19 15 1 24 9 . 18 2 2 . . . . . 3 3 AOE 11 | . . . . . 2 1 . 2 . . . 2 . . . . . 2 . 2 Classes Destroyed 21 | 1 5 4 . . 4 2 . 1 1 . . 1 . 1 . . . . . 1 Worker 10 | . . 1 . . 1 1 . 3 . . . 1 . . 2 . . . 1 . Builder 6 | . . 1 . . . . . . . . . 1 . . . 3 . . . 1 Tunneler 4 | 1 . . . 1 1 . . . . . . 1 . . . . . . . . Hauler 16 | . 2 . 1 . 3 4 . 3 . . . . . . 2 . . 1 . . Recycler 4 | . . 1 . . . 1 1 . . . . 1 . . . . . . . . Mechanic 1 | . . . . . 1 . . . . . . . . . . . . . . . Operator 1 | . . . . . . . . . . . . . . 1 . . . . . . Watcher 7 | . 1 . 2 . . . . . . . . 1 . . 2 . . 1 . . Swarmer 42 | . 3 6 6 6 4 3 . 3 . . 8 . . . . . . 3 . . Cutter 1 | . . . . . . . . . . . . . . . . . . . . 1 Grunt 96 | . 8 . 7 2 11 5 . 18 2 . 6 14 . . 9 2 . 3 4 5 Brawler 4 | . . . . . . 1 . . 1 . 1 . . . . . . 1 . . Duelist 2 | . . . . . 1 . . 1 . . . . . . . . . . . . Sentry 36 | . . 2 6 . 2 8 1 4 . . 2 3 . 1 4 1 . 1 . 1 Specialist 3 | . . . . . 2 . . . . . . . . . . . . 1 . . Hunter 11 | . . . . . . 1 . 3 1 . . 2 . . 2 . . 1 1 . Programmer 17 | . . . . . . . . 5 1 . 5 . . . 4 . . 1 . 1 Heavy 3 | . . . . . 1 . . . . . . . . . 1 . . 1 . . Behemoth 2 | . . . . . . . . . . . . 2 . . . . . . . . Cetus Guard 4 | . . . . . . . . . . . . . 4 . . . . . . . Subdweller 2 | . 2 . . . . . . . . . . . . . . . . . . . Thief 1 | . . . . . . . . . 1 . . . . . . . . . . . Thug 1 | . . . . . . . . . 1 . . . . . . . . . . . Butcher 2 | . . . . . . . . . 2 . . . . . . . . . . . Best Kill Streak 7 | 1 3 6 7 4 5 5 1 5 4 . 5 4 2 1 3 5 . 5 2 5 Combat Bots Only 7 | . 3 5 7 2 5 3 1 3 4 . 5 2 2 1 3 2 . 5 2 4 Max Kills in Single Turn 5 | 1 1 2 1 2 2 3 1 5 2 . 1 2 1 1 1 2 . 2 1 3 Gunslinging . | . . . . . . . . . . . . . . . . . . . . . Exploded 2 | . . . . . 1 1 . 2 . . . 2 . . . . . 1 . 1 Melee 2 | . . . . 1 . 1 . 2 . . 1 1 . . . . . . . 1 Uniques/NPCs Destroyed . | . . . . . . . . . . . . . . . . . . . . . Combat | -11 -10 -10 -9 -9 -8 -8 -8 -6 -6 -6 -5 -5 -5 -5 -5 -4 -4 -4 -3 -2 -------- Run | Yrd Mat Min Mat Min Mat Sto Rec Fac Low Low Fac Ext Cet Arc Hub Fac Was Fac Res Res Hostile Shots Fired 2519 | . 75 61 104 38 102 88 6 469 25 . 210 183 7 13 161 24 . 578 66 309 Missed 712 | . 13 18 25 11 28 25 2 145 12 . 60 58 1 5 30 5 . 188 21 65 Deflected 2 | . . . . . . . . 2 . . . . . . . . . . . . Hits 1807 | . 62 43 79 27 74 63 4 324 13 . 150 125 6 8 131 19 . 390 45 244 Melee 28 | . . . . . 1 . . . 2 . 4 . . . . . . 2 2 17 Projectile 1779 | . 62 43 79 27 73 63 4 324 11 . 146 125 6 8 131 19 . 388 43 227 AOE 4 | . . . . . . . . 2 . . . . . . . . . 2 . . Critical Strikes 82 | . 1 1 1 . 3 2 . 12 1 . 6 5 2 1 8 . . 10 4 25 Part Disruptions 1 | . . . . . . . . . . . . . . . 1 . . . . . Damage Taken 33850 | . 877 401 985 472 1253 944 59 4902 278 . 2889 2665 178 210 2826 317 . 7520 1074 6000 Core 4787 | . 116 65 159 120 166 45 . 776 19 . 220 205 . . 365 15 . 1039 21 1456 Absorbed by Shields 338 | . . . . . . . . 84 . . 254 . . . . . . . . . Reduced by Siege Mode 55 | . . . . . . . . . . . . . . . 6 . . . . 49 Redirected to Shielding 54 | . . . . . 54 . . . . . . . . . . . . . . . Ignored by Resistances 1017 | . . . . . . . . 9 . . 40 240 . . 95 91 . 527 15 . Regen/Repaired (Parts) 2474 | . . . . . . 345 . . . . 123 . . . . . 873 1133 . . Core Remaining (%) 43 | 100 . 27 . 30 . . 61 . . 6 . . . . 21 . . 8 98 . Volleys Fired 691 | 2 58 16 55 15 54 55 4 93 23 . 49 69 10 6 91 15 . 34 24 18 Largest 4 | 2 2 2 2 2 2 2 2 2 2 . 2 2 2 2 2 3 . 3 3 4 Hottest 178 | 40 50 50 74 74 74 74 74 80 80 . 80 86 81 68 70 103 . 111 107 178 Shots Fired 1439 | 4 114 32 110 27 108 110 8 171 48 . 97 131 20 11 177 45 . 102 55 69 Gun 734 | 4 113 16 40 . . . . 54 . . 6 84 16 11 177 45 . 97 31 40 Cannon 689 | . 1 16 70 27 106 110 8 116 48 . 91 42 4 . . . . . 24 26 Launcher 16 | . . . . . 2 . . 1 . . . 5 . . . . . 5 . 3 Special . | . . . . . . . . . . . . . . . . . . . . . Kinetic 1423 | 4 114 32 110 27 106 110 8 170 48 . 97 126 20 11 177 45 . 97 55 66 Thermal . | . . . . . . . . . . . . . . . . . . . . . Explosive 8 | . . . . . 2 . . 1 . . . . . . . . . 2 . 3 Electromagnetic 8 | . . . . . . . . . . . . 5 . . . . . 3 . . Robot Hit Streak 28 | 3 17 6 22 2 19 16 6 19 16 . 17 28 7 13 16 7 . 8 16 9 Robot Miss Streak 8 | . 7 3 3 3 2 2 2 6 1 . 2 3 1 . 3 6 . 8 3 3 Penetration Max 1 | . . . . . . . . . . . . 1 1 1 1 1 . 1 1 1 Secondary Targets 10 | . 2 . . . . . . . . . . . . 1 4 . . 3 . . Max Gunslinging Chain 1 | . 1 . . . . . . . . . . . . 1 1 . . 1 . . Shots Hit Robots 1090 | 3 77 19 79 12 83 84 6 153 37 . 94 122 16 11 125 26 . 58 39 46 Core Hits 548 | 1 33 12 28 9 42 27 2 126 16 . 34 61 9 5 56 12 . 30 17 28 Critical Kills 23 | . 1 . . . . . . . . . . 7 3 1 6 . . 5 . . Critical Parts Destroyed 40 | . . . . . . . . . . . . 9 1 . 12 5 . 8 1 4 Critical Strikes 110 | . 1 . 3 1 2 4 1 9 1 . 9 29 7 1 18 5 . 13 2 4 Destroy 69 | . 1 . . . . . . . . . . 19 7 1 18 5 . 13 1 4 Blast 32 | . . . 3 1 2 4 1 7 1 . 6 6 . . . . . . 1 . Impale 9 | . . . . . . . . 2 . . 3 4 . . . . . . . . Melee Attacks 116 | . . . 4 . . 6 . 31 . . 48 23 . . . . . . . 4 Impact 4 | . . . 4 . . . . . . . . . . . . . . . . . Slashing 4 | . . . . . . . . . . . . . . . . . . . . 4 Piercing 108 | . . . . . . 6 . 31 . . 48 23 . . . . . . . . Sneak Attacks 5 | . . . . . . . . . . . . 5 . . . . . . . . Combat Hostiles . | . . . . . . . . . . . . . . . . . . . . . Follow-up Attacks 1 | . . . . . . . . 1 . . . . . . . . . . . . Martial Strikes 4 | . . . . . . . . 4 . . . . . . . . . . . . Damage Inflicted 29910 | 32 819 279 1548 439 2215 2251 174 4365 1011 . 2664 3304 409 307 3528 731 . 2218 1205 2411 Guns 10924 | 32 810 89 396 . . . . 911 . . 87 1257 291 298 3480 731 . 1357 588 597 Cannons 13641 | . . 190 1148 403 1988 1896 138 2464 1011 . 2077 958 118 . . . . . 617 633 Explosions 3229 | . . . . . 207 270 . 415 . . . 395 . . . . . 828 . 1114 Melee 1776 | . . . . . . 66 . 479 . . 497 667 . . . . . . . 67 Ramming 340 | . 9 . 4 36 20 19 36 96 . . 3 27 . 9 48 . . 33 . . Kinetic 24565 | 32 810 279 1544 403 1988 1896 138 3375 1011 . 2164 2215 409 298 3480 731 . 1357 1205 1230 Thermal 300 | . . . . . . . . . . . . 51 . . . . . 249 . . Explosive 2280 | . . . . . 207 270 . 415 . . . . . . . . . 274 . 1114 Electromagnetic 649 | . . . . . . . . . . . . 344 . . . . . 305 . . Impact . | . . . . . . . . . . . . . . . . . . . . . Slashing 67 | . . . . . . . . . . . . . . . . . . . . 67 Piercing 1709 | . . . . . . 66 . 479 . . 497 667 . . . . . . . . Highest Corruption 24 | . . . . 1 . . . 2 2 2 13 13 13 13 24 . . 1 . 16 Average Corruption 7 | . . . . 1 . . . 1 2 2 9 13 13 13 15 . . 1 . 11 Corruption Purged . | . . . . . . . . . . . . . . . . . . . . . Corruption Blocked . | . . . . . . . . . . . . . . . . . . . . . Effects 231 | . . . . 2 . . . 17 15 . 34 75 22 14 46 . . 1 . 5 Message Errors 54 | . . . . 1 . . . 6 2 . 10 16 3 4 10 . . . . 2 Matter Fused 59 | . . . . 1 . . . 1 2 . 7 24 7 6 10 . . 1 . . Heat Flow Errors 24 | . . . . . . . . 4 1 . 6 5 2 . 5 . . . . 1 Energy Discharges 22 | . . . . . . . . 2 5 . 1 6 2 1 5 . . . . . Parts Rejected 3 | . . . . . . . . . . . 1 1 . . 1 . . . . . Parts Fused 1 | . . . . . . . . . . . . 1 . . . . . . . . Data Loss (minor) 29 | . . . . . . . . 3 3 . 3 10 4 1 5 . . . . . Data Loss (major) 15 | . . . . . . . . 1 . . 2 5 4 1 2 . . . . . Misfires 9 | . . . . . . . . . 2 . . 5 . . 2 . . . . . Alerts 5 | . . . . . . . . . . . 3 . . . 2 . . . . . Misdirections 2 | . . . . . . . . . . . . 1 . . . . . . . 1 Weapon Failures 8 | . . . . . . . . . . . 1 1 . 1 4 . . . . 1 Overload Shots . | . . . . . . . . . . . . . . . . . . . . . Overflow Damage 457 | . . 2 . 28 10 37 . 120 8 . 131 78 . . . . . . . 43 Projectiles 196 | . . 2 . 28 . 18 . 47 8 . 62 . . . . . . . . 31 Explosions 22 | . . . . . 10 . . . . . . . . . . . . . . 12 Melee 239 | . . . . . . 19 . 73 . . 69 78 . . . . . . . . Knockbacks 161 | . . 1 5 4 30 17 . 36 17 . 32 5 . . . . . . 7 7 Impact 3 | . . . . . . . . 2 . . . 1 . . . . . . . . Kinetic 141 | . . 1 4 4 26 16 . 31 13 . 28 4 . . . . . . 7 7 Secondary 17 | . . . 1 . 4 1 . 3 4 . 4 . . . . . . . . . Self-Inflicted Damage 262 | . . . . . 43 20 . . . . . 43 . . . . . 5 . 151 Shots 8 | . . . . . 2 1 . . . . . 2 . . . . . 1 . 2 Rammed 31 | . 5 . 3 5 1 6 2 3 . . . . . . 2 . . 3 1 . Targets Rammed 44 | . 6 . 3 6 2 7 2 7 . . 1 1 . 1 3 . . 4 1 . Kicked 6 | . . . . . . . . 4 . . 1 1 . . . . . . . . Crushed 7 | . 1 . . 1 1 1 . . . . . . . 1 1 . . 1 . . Highest Temperature 471 | . 25 46 63 75 108 103 102 471 207 . 256 220 268 . 258 6 . 428 36 446 Average Temperature 60 | . 8 15 16 21 37 31 54 76 41 . 51 48 115 . 94 5 . 122 15 178 Received Heat Transfer 6213 | . 312 63 303 39 522 288 18 1378 81 . 306 469 9 18 405 93 . 1116 325 468 Effects 8 | . . . . . . . . 5 . . . . . . . . . 2 . 1 Shutdowns 2 | . . . . . . . . . . . . . . . . . . 1 . 1 Matter Decay 2 | . . . . . . . . 2 . . . . . . . . . . . . Short Circuit 2 | . . . . . . . . 1 . . . . . . . . . 1 . . Damage (minor) 2 | . . . . . . . . 2 . . . . . . . . . . . . Siege Activations 4 | . . . . . . . . . . . . . . . 2 . . . 1 1 Total Turns 45 | . . . . . . . . . . . . . . . 34 . . . 6 5 Longest Duration 18 | . . . . . . . . . . . . . . . 18 . . . 6 5 Martial Activations 3 | . . . . . . . . 3 . . . . . . . . . . . . Total Turns 101 | . . . . . . . . 101 . . . . . . . . . . . . Longest Duration 55 | . . . . . . . . 55 . . . . . . . . . . . . Shielding Activations . | . . . . . . . . . . . . . . . . . . . . . Robots Disrupted . | . . . . . . . . . . . . . . . . . . . . . Combat Hostiles . | . . . . . . . . . . . . . . . . . . . . . Robots Corrupted . | . . . . . . . . . . . . . . . . . . . . . Combat Hostiles . | . . . . . . . . . . . . . . . . . . . . . Parts Fried . | . . . . . . . . . . . . . . . . . . . . . Impact Corruptions . | . . . . . . . . . . . . . . . . . . . . . Robots Melted . | . . . . . . . . . . . . . . . . . . . . . Combat Hostiles . | . . . . . . . . . . . . . . . . . . . . . Parts Melted 2 | . 1 . . . . . . . . . . . . . . . . . 1 . Heat Transferred 250 | . . . . . . . . . . . . 50 . . . . . 200 . . Parts Sabotaged . | . . . . . . . . . . . . . . . . . . . . . Parts Stolen . | . . . . . . . . . . . . . . . . . . . . . Parts Stripped . | . . . . . . . . . . . . . . . . . . . . . Power Chain Reactions 3 | . . . . . . . . . . . . 2 . . . . . 1 . . Alert | -11 -10 -10 -9 -9 -8 -8 -8 -6 -6 -6 -5 -5 -5 -5 -5 -4 -4 -4 -3 -2 ------- Run | Yrd Mat Min Mat Min Mat Sto Rec Fac Low Low Fac Ext Cet Arc Hub Fac Was Fac Res Res Maximum Alert Level 5 | . . . . 1 1 1 . 2 . . . 2 2 1 1 1 . 5 4 2 Low Security (%) 63 | 100 100 100 100 68 70 76 100 12 . . 100 74 . 35 76 66 100 29 . . Level 1 20 | . . . . 31 29 23 . 74 . . . 15 14 64 23 33 . 2 . 15 Level 2 7 | . . . . . . . . 12 . . . 9 85 . . . . 10 . 84 Level 3 5 | . . . . . . . . . . . . . . . . . . 8 85 . Level 4 1 | . . . . . . . . . . . . . . . . . . 11 14 . Level 5 1 | . . . . . . . . . . . . . . . . . . 22 . . High Security . | . . . . . . . . . . . . . . . . . . 15 . . Max Security . | . . . . . . . . . . . . . . . . . . . . . Peak Influence 2338 | 5 102 95 185 261 261 291 125 481 . . 151 595 513 279 392 287 93 2338 1129 637 Initial 1127 | . . 1 20 60 46 76 104 350 . . . 58 326 150 62 179 93 . 1127 443 Average 237 | . 34 30 46 145 134 112 45 289 . . 54 136 437 220 153 195 16 1064 965 445 Influence Increases 12001 | 5 369 195 560 479 598 733 260 1458 130 . 677 1131 357 178 974 248 . 2922 148 579 Destroy 0b10 Robot/C 5620 | . 220 160 380 300 420 360 20 680 100 . 440 580 160 80 460 60 . 940 100 160 Destroy 0b10 Robot/NC 300 | 5 15 15 15 5 30 30 5 30 . . . 30 10 5 30 15 . 50 5 5 Destroy Leader 1214 | . 56 20 106 40 96 128 . 166 30 . 100 72 . . 158 10 . 182 20 30 Allied During Kill 1674 | . . . . 74 . . . . . . . 299 166 70 91 . . 974 . . Successful Hack 314 | . 17 . 21 10 13 39 24 36 . . 52 21 9 . 14 24 . 34 . . Select Force Hacks 210 | . . . . . . . 210 . . . . . . . . . . . . . Disable Machine 645 | . . . . 30 15 60 . . . . . 45 . 15 105 45 . 300 15 15 Destroy Structure 1089 | . 1 . 8 5 24 41 1 31 . . 70 24 12 8 86 94 . 352 8 324 Advance Influence 350 | . . . . . . . . 350 . . . . . . . . . . . . Partial Spotted 15 | . . . . . . 15 . . . . . . . . . . . . . . Lose Combat Pursuer 570 | . 60 . 30 15 . 60 . 165 . . 15 60 . . 30 . . 90 . 45 Influence Decreases 11445 | 5 365 145 459 513 536 647 529 1000 578 10 558 667 563 377 784 349 267 774 1507 812 Entered New Map 3042 | . . 3 34 95 75 107 165 . 170 2 . 61 257 227 116 189 174 . 1021 346 Time Decay 6468 | 5 325 132 408 368 401 510 364 660 388 8 486 450 246 130 458 140 93 244 446 206 Search Patrol Dispatched 100 | . . . . . . . . 100 . . . . . . . . . . . . Lost Part 1105 | . 40 10 17 30 60 30 . 240 20 . 72 76 . . 30 20 . 190 20 250 Lost Ally 730 | . . . . 20 . . . . . . . 80 60 20 180 . . 340 20 10 Squads Dispatched 64 | . 2 . 1 . 2 2 . 11 . . 6 5 . . 9 . . 18 6 2 Investigation 8 | . . . . . . 1 . 2 . . 1 . . . 2 . . . 2 . Extermination 12 | . . . . . . . . 5 . . 3 . . . 2 . . 1 . 1 Reinforcement 30 | . 2 . 1 . 2 1 . 3 . . 1 5 . . 5 . . 5 4 1 Assault 10 | . . . . . . . . 1 . . . . . . . . . 9 . . Garrison 4 | . . . . . . . . . . . 1 . . . . . . 3 . . Intercept . | . . . . . . . . . . . . . . . . . . . . . Searches Triggered 1 | . . . . . . . . 1 . . . . . . . . . . . . Construction Impeded 4 | . . . 1 . . . . . . . . 2 . . 1 . . . . . Haulers Reinforced 5 | . . . . . . . . 2 . . 1 . . . . . . 2 . . Active Scanning Responses . | . . . . . . . . . . . . . . . . . . . . . Cargo Convoy Interrupts . | . . . . . . . . . . . . . . . . . . . . . Stealth | -11 -10 -10 -9 -9 -8 -8 -8 -6 -6 -6 -5 -5 -5 -5 -5 -4 -4 -4 -3 -2 --------- Run | Yrd Mat Min Mat Min Mat Sto Rec Fac Low Low Fac Ext Cet Arc Hub Fac Was Fac Res Res Distress Signals 27 | . 2 . 1 . 2 5 . 3 . . 1 2 2 . 1 . . 3 4 1 Communications Jammed 247 | . . . . . . . . 5 . . . . . . 5 31 . 206 . . Distress Signals 233 | . . . . . . . . 5 . . . . . . 5 31 . 192 . . Times Spotted 426 | . 24 10 28 16 29 29 1 62 10 . 27 36 9 4 32 6 . 65 15 23 Peak Tracking Total 15 | . 6 5 4 4 5 3 1 5 4 . 5 5 5 2 4 3 . 15 6 14 Tactical Retreats 27 | . 3 . 2 1 . 3 . 6 . . 1 4 . . 2 . . 3 . 2 Traps | -11 -10 -10 -9 -9 -8 -8 -8 -6 -6 -6 -5 -5 -5 -5 -5 -4 -4 -4 -3 -2 ------- Run | Yrd Mat Min Mat Min Mat Sto Rec Fac Low Low Fac Ext Cet Arc Hub Fac Was Fac Res Res Traps Triggered 13 | . . . . 1 . . . 2 . . 2 4 . . . 1 . 2 1 . Indirectly . | . . . . . . . . . . . . . . . . . . . . . Trap Hack Attempts . | . . . . . . . . . . . . . . . . . . . . . Triggered . | . . . . . . . . . . . . . . . . . . . . . Disarmed . | . . . . . . . . . . . . . . . . . . . . . Reprogrammed . | . . . . . . . . . . . . . . . . . . . . . Reused . | . . . . . . . . . . . . . . . . . . . . . Traps Extracted . | . . . . . . . . . . . . . . . . . . . . . Installed . | . . . . . . . . . . . . . . . . . . . . . Triggered . | . . . . . . . . . . . . . . . . . . . . . Machines | -11 -10 -10 -9 -9 -8 -8 -8 -6 -6 -6 -5 -5 -5 -5 -5 -4 -4 -4 -3 -2 ---------- Run | Yrd Mat Min Mat Min Mat Sto Rec Fac Low Low Fac Ext Cet Arc Hub Fac Was Fac Res Res Machines Disabled 44 | . . . . 2 1 4 . . . . . 4 . 1 7 3 . 20 1 1 Max in Single Turn 9 | . . . . 1 1 1 . . . . . 1 . . 3 2 . 9 1 1 Garrison Access 3 | . . . . . 1 . . . . . 1 . . . . . . 1 . . Machines Repaired . | . . . . . . . . . . . . . . . . . . . . . Machines Dismantled . | . . . . . . . . . . . . . . . . . . . . . Machines Sabotaged . | . . . . . . . . . . . . . . . . . . . . . Overloaded Fab Kills . | . . . . . . . . . . . . . . . . . . . . . Hacking | -11 -10 -10 -9 -9 -8 -8 -8 -6 -6 -6 -5 -5 -5 -5 -5 -4 -4 -4 -3 -2 --------- Run | Yrd Mat Min Mat Min Mat Sto Rec Fac Low Low Fac Ext Cet Arc Hub Fac Was Fac Res Res Machines Accessed 84 | . 7 . 10 2 6 12 12 6 . . 7 5 1 . 6 2 . 5 3 . Terminals 63 | . 6 . 9 1 5 10 5 5 . . 4 5 1 . 6 2 . 3 1 . Fabricators 2 | . . . . . . . . . . . 1 . . . . . . . 1 . Repair Stations 3 | . . . . . . 1 . . . . 1 . . . . . . 1 . . Recycling Units 10 | . 1 . . . . . 7 1 . . . . . . . . . 1 . . Scanalyzers 2 | . . . 1 . . . . . . . . . . . . . . . 1 . Garrison Access 3 | . . . . . 1 1 . . . . 1 . . . . . . . . . Total Hacks 228 | . 21 . 34 4 20 32 34 13 . . 25 10 2 . 14 3 . 11 5 . Successful 116 | . 13 . 18 4 10 18 21 5 . . 15 4 1 . 2 2 . 3 . . Failed 112 | . 8 . 16 . 10 14 13 8 . . 10 6 1 . 12 1 . 8 5 . Catastrophic 9 | . 1 . 1 . . 1 . 1 . . . 1 . . 2 . . . 2 . Database Lockouts . | . . . . . . . . . . . . . . . . . . . . . Manual 155 | . 18 . 20 6 17 18 20 10 . . 14 5 . 1 14 3 . 7 2 . Terminals 180 | . 20 . 27 3 19 26 16 12 . . 19 10 2 . 14 3 . 7 2 . Fabricators 3 | . . . . . . . . . . . 2 . . . . . . . 1 . Repair Stations 8 | . . . . . . 4 . . . . 2 . . . . . . 2 . . Recycling Units 22 | . 1 . . . . . 18 1 . . . . . . . . . 2 . . Scanalyzers 9 | . . . 7 . . . . . . . . . . . . . . . 2 . Garrison Access 5 | . . . . . 1 2 . . . . 2 . . . . . . . . . Terminal Hacks 34 | . 5 . 4 4 2 7 2 2 . . 4 2 1 . . . . 1 . . Record 1 | . 1 . . . . . . . . . . . . . . . . . . . Robot Analysis 5 | . 3 . . 1 . . . 1 . . . . . . . . . . . . Prototype ID Bank 2 | . . . 1 . . . 1 . . . . . . . . . . . . . Open Door 8 | . . . . 1 . 4 . . . . . 2 1 . . . . . . . Branch Access Points 2 | . . . 1 . . . . 1 . . . . . . . . . . . . Terminal Index 6 | . 1 . 1 . 1 1 . . . . 1 . . . . . . 1 . . Alert Level 4 | . . . . 1 1 1 . . . . 1 . . . . . . . . . Dispatch Records 1 | . . . . 1 . . . . . . . . . . . . . . . . Recall Investigation 1 | . . . . . . . . . . . 1 . . . . . . . . . Registered Components 3 | . . . 1 . . 1 . . . . 1 . . . . . . . . . Zone Layout 1 | . . . . . . . 1 . . . . . . . . . . . . . Fabricator Hacks 1 | . . . . . . . . . . . 1 . . . . . . . . . Network Status 1 | . . . . . . . . . . . 1 . . . . . . . . . Repair Station Hacks 6 | . . . . . . 4 . . . . 2 . . . . . . . . . Scan Component 3 | . . . . . . 2 . . . . 1 . . . . . . . . . Repair 3 | . . . . . . 2 . . . . 1 . . . . . . . . . Recycling Unit Hacks 7 | . 1 . . . . . 6 . . . . . . . . . . . . . Report Inventory 6 | . 1 . . . . . 5 . . . . . . . . . . . . . Retrieve Components 1 | . . . . . . . 1 . . . . . . . . . . . . . Scanalyzer 4 | . . . 4 . . . . . . . . . . . . . . . . . Retrieve Study 4 | . . . 4 . . . . . . . . . . . . . . . . . Garrison Access Hacks 2 | . . . . . 1 . . . . . 1 . . . . . . . . . Seal Access 2 | . . . . . 1 . . . . . 1 . . . . . . . . . Unauthorized Hacks 62 | . 7 . 10 . 7 7 13 3 . . 7 2 . . 2 2 . 2 . . Terminals 55 | . 7 . 10 . 7 7 6 3 . . 7 2 . . 2 2 . 2 . . Assimilate 2 | . . . 1 . . . . . . . 1 . . . . . . . . . Botnet 8 | . 2 . 1 . 2 1 1 . . . 1 . . . . . . . . . Operators 2 | . . . 1 . . . . . . . 1 . . . . . . . . . Skim 42 | . 5 . 7 . 5 6 5 3 . . 4 2 . . 1 2 . 2 . . Sabotage 1 | . . . . . . . . . . . . . . . 1 . . . . . Fabricators . | . . . . . . . . . . . . . . . . . . . . . Repair Stations . | . . . . . . . . . . . . . . . . . . . . . Recycling Units 7 | . . . . . . . 7 . . . . . . . . . . . . . Tunnel 7 | . . . . . . . 7 . . . . . . . . . . . . . Scanalyzers . | . . . . . . . . . . . . . . . . . . . . . Garrison Access . | . . . . . . . . . . . . . . . . . . . . . Data Cores Recovered . | . . . . . . . . . . . . . . . . . . . . . Used . | . . . . . . . . . . . . . . . . . . . . . Hacking Detections 66 | . 6 . 8 1 5 8 6 6 . . 6 5 . . 5 2 . 5 3 . Full Trace Events 5 | . . . . . . 1 . 2 . . . . . . 1 . . . 1 . Feedback Events . | . . . . . . . . . . . . . . . . . . . . . Feedback Blocked . | . . . . . . . . . . . . . . . . . . . . . Robot Schematics Acquired . | . . . . . . . . . . . . . . . . . . . . . Robots Built . | . . . . . . . . . . . . . . . . . . . . . Authchips . | . . . . . . . . . . . . . . . . . . . . . Time . | . . . . . . . . . . . . . . . . . . . . . Total Robot Build Rating . | . . . . . . . . . . . . . . . . . . . . . Part Schematics Acquired . | . . . . . . . . . . . . . . . . . . . . . Parts Built . | . . . . . . . . . . . . . . . . . . . . . Authchips . | . . . . . . . . . . . . . . . . . . . . . Time . | . . . . . . . . . . . . . . . . . . . . . Total Part Build Rating . | . . . . . . . . . . . . . . . . . . . . . Part Studies Acquired 4 | . . . 4 . . . . . . . . . . . . . . . . . Parts Repaired 3 | . . . . . . 2 . . . . 1 . . . . . . . . . Time 98 | . . . . . . 76 . . . . 22 . . . . . . . . . Parts Recycled . | . . . . . . . . . . . . . . . . . . . . . Recycled Matter . | . . . . . . . . . . . . . . . . . . . . . Retrieved Matter . | . . . . . . . . . . . . . . . . . . . . . Retrieved Components 3 | . . . . . . . 3 . . . . . . . . . . . . . Parts Scanalyzed . | . . . . . . . . . . . . . . . . . . . . . Part Schematics Acquired . | . . . . . . . . . . . . . . . . . . . . . Parts Damaged . | . . . . . . . . . . . . . . . . . . . . . Bothacking | -11 -10 -10 -9 -9 -8 -8 -8 -6 -6 -6 -5 -5 -5 -5 -5 -4 -4 -4 -3 -2 ------------ Run | Yrd Mat Min Mat Min Mat Sto Rec Fac Low Low Fac Ext Cet Arc Hub Fac Was Fac Res Res Used RIF Installer . | . . . . . . . . . . . . . . . . . . . . . Robots Hacked . | . . . . . . . . . . . . . . . . . . . . . Non-combat . | . . . . . . . . . . . . . . . . . . . . . Combat . | . . . . . . . . . . . . . . . . . . . . . Robot Hacks Applied . | . . . . . . . . . . . . . . . . . . . . . Relay Couplers Released 1 | . . . . . . . . . . . . . . . . . . 1 . . Machine Destruction 1 | . . . . . . . . . . . . . . . . . . 1 . . Fabnet Peak Effective % . | . . . . . . . . . . . . . . . . . . . . . Robots Rewired 16 | . . . . . . . . . . . . 16 . . . . . . . . Allies Hacked . | . . . . . . . . . . . . . . . . . . . . . Hacks Repelled . | . . . . . . . . . . . . . . . . . . . . . Allies | -11 -10 -10 -9 -9 -8 -8 -8 -6 -6 -6 -5 -5 -5 -5 -5 -4 -4 -4 -3 -2 -------- Run | Yrd Mat Min Mat Min Mat Sto Rec Fac Low Low Fac Ext Cet Arc Hub Fac Was Fac Res Res Total Allies 45 | . . . . 6 . . . . . . . 19 . . . . 20 . . . Largest Group 20 | . . . . 5 1 . . . . . . 15 14 10 9 . 20 20 . . Highest-Rated Group 781 | . . . . 84 31 . . . . . . 467 442 304 265 . 781 781 . . Highest-Rated Ally 50 | . . . . 31 31 . . . . . . 39 39 39 39 . 50 50 . . Total Orders 5 | . . . . . . . . . . . . . . . . . . . 2 3 EXPLORE 5 | . . . . . . . . . . . . . . . . . . . 2 3 Ally Attacks 453 | . . . . 16 . . . . . . . 82 33 23 49 . . 250 . . Total Damage 10612 | . . . . 111 . . . . . . . 1322 698 364 634 . . 7483 . . Kills 74 | . . . . 7 . . . . . . . 9 7 3 3 . . 45 . . Allies Corrupted 1 | . . . . 1 . . . . . . . . . . . . . . . . Allies Melted . | . . . . . . . . . . . . . . . . . . . . . Intel | -11 -10 -10 -9 -9 -8 -8 -8 -6 -6 -6 -5 -5 -5 -5 -5 -4 -4 -4 -3 -2 ------- Run | Yrd Mat Min Mat Min Mat Sto Rec Fac Low Low Fac Ext Cet Arc Hub Fac Was Fac Res Res Active Infowar (turns) 9407 | 15 1162 420 160 . 489 532 . 2157 360 . . . . . 876 295 584 878 1101 378 Optics 4112 | . . . . . . . . . . . . . . . 876 295 584 878 1101 378 Sensors 1173 | . 152 . . . 489 532 . . . . . . . . . . . . . . IFF 883 | . . . . . . . . 883 . . . . . . . . . . . . Terrain 1930 | 15 34 . . . . . . 1521 360 . . . . . . . . . . . Structural 1556 | . 976 420 160 . . . . . . . . . . . . . . . . . Jamming 3021 | . . . . . . . . 589 . . . . . . 698 295 584 855 . . Robot Analysis Total 5 | . 3 . . 1 . . . 1 . . . . . . . . . . . . Derelict Logs Recovered 2 | . . 1 . . . . . . 1 . . . . . . . . . . . Drone Launches 5 | . . . . . . . . . . . . . . . . . . . 3 2 Drone Recoveries 2 | . . . . . . . . . . . . . . . . . . . 1 1 Exploration | -11 -10 -10 -9 -9 -8 -8 -8 -6 -6 -6 -5 -5 -5 -5 -5 -4 -4 -4 -3 -2 ------------- Run | Yrd Mat Min Mat Min Mat Sto Rec Fac Low Low Fac Ext Cet Arc Hub Fac Was Fac Res Res Turns Passed 19313 | 112 1162 420 1147 840 1198 1495 987 2482 952 40 1665 1582 528 276 1141 295 584 878 1101 428 Spaces Moved 8396 | 60 576 204 506 380 439 524 437 972 451 22 653 589 280 152 497 132 320 422 557 223 Core 6 | 2 . . . . . . . . . . . . . . . . . . . 4 Treads 6201 | 58 576 204 506 380 439 524 437 214 . . . 348 280 152 497 132 320 412 557 165 Legs 2125 | . . . . . . . . 758 451 22 653 241 . . . . . . . . Wheels 10 | . . . . . . . . . . . . . . . . . . 10 . . Hover . | . . . . . . . . . . . . . . . . . . . . . Flight 54 | . . . . . . . . . . . . . . . . . . . . 54 Fastest Speed 42 | 50 160 160 160 200 210 216 222 162 190 190 186 168 163 163 163 163 167 160 160 42 Average Speed 184 | 156 160 160 179 202 218 222 222 197 190 190 189 181 163 163 163 165 167 171 171 142 Slowest Speed 360 | 160 240 160 200 213 226 232 222 360 190 190 260 260 168 163 163 245 167 270 240 242 Overloaded Moves 12 | . . . . . . . . 12 . . . . . . . . . . . . Propulsion Burnouts . | . . . . . . . . . . . . . . . . . . . . . Robots Hopped 3 | . . . . . . . . . . . . . . . . . . . 1 2 Potential Cave-ins . | . . . . . . . . . . . . . . . . . . . . . Cave-ins Triggered . | . . . . . . . . . . . . . . . . . . . . . Exploration Rate (%) 51 | 7 86 55 60 72 45 78 96 32 64 11 14 78 75 96 53 5 96 21 27 11 Regions Visited 20 Branch Regions 10 Pre-discovered Areas 17 | . . . 1 . 4 2 10 . . . . . . . . . . . . . Known Exits Taken 8 | . . 1 1 1 1 1 1 1 . . . . . . 1 . . . . . Unknown Exits Taken 10 | 1 1 . . . . . . . 1 1 1 1 1 1 . . . 1 1 . Scrap Searched 9 | . . 1 . 4 . . . . 4 . . . . . . . . . . . Spaces Dug 30 | . . . 1 . . 3 . 6 . . 20 . . . . . . . . . Terrain Destroyed 481 | . . . 7 5 23 40 1 34 3 . 30 5 2 3 43 49 . 79 4 153 Melee 30 | . . . 1 . . 3 . 6 . . 20 . . . . . . . . . Projectile 156 | . . . 6 5 9 14 1 9 3 . 10 2 2 3 43 11 . 20 4 14 AOE 294 | . . . . . 14 23 . 19 . . . 3 . . . 38 . 59 . 138 Terrain Rammed . | . . . . . . . . . . . . . . . . . . . . . Walls Destroyed . | . . . . . . . . . . . . . . . . . . . . . Machines Disabled . | . . . . . . . . . . . . . . . . . . . . . Actions | -11 -10 -10 -9 -9 -8 -8 -8 -6 -6 -6 -5 -5 -5 -5 -5 -4 -4 -4 -3 -2 --------- Run | Yrd Mat Min Mat Min Mat Sto Rec Fac Low Low Fac Ext Cet Arc Hub Fac Was Fac Res Res Total 10677 | 71 707 273 641 424 580 725 447 1308 502 21 888 944 344 177 651 177 377 496 650 274 Wait 542 | . 39 40 21 6 35 101 . 88 12 . 59 41 15 . 35 16 15 3 16 . Move 8372 | 59 575 203 505 379 438 523 436 971 450 21 652 588 279 151 496 132 319 421 555 219 Hop 3 | . . . . . . . . . . . . . . . . . . . 1 2 Pick Up 238 | 3 17 3 20 8 19 8 2 36 5 . 19 21 14 8 7 6 11 4 23 4 Fast Attach 72 | 7 1 . 1 . 2 3 . 17 . . 7 6 2 . 3 . 2 5 10 6 Attach 96 | . 3 1 3 3 6 2 . 22 3 . 10 9 . . 3 5 2 7 7 10 Detach 3 | . . . . . . . . 2 . . 1 . . . . . . . . . Swap 142 | . 4 4 14 1 7 10 . 16 4 . 23 17 4 1 5 1 9 11 5 6 Drop 209 | . 4 6 15 6 17 10 3 30 5 . 19 14 20 10 8 2 19 7 9 5 Fire 691 | 2 58 16 55 15 54 55 4 93 23 . 49 69 10 6 91 15 . 34 24 18 Melee 111 | . . . 4 . . 6 . 26 . . 48 23 . . . . . . . 4 Ram . | . . . . . . . . . . . . . . . . . . . . . Kick 6 | . . . . . . . . 4 . . 1 1 . . . . . . . . Crush 37 | . 6 . 3 6 2 7 2 3 . . . . . 1 3 . . 4 . . Escape Stasis 17 | . . . . . . . . . . . . 17 . . . . . . . . Rewire 138 | . . . . . . . . . . . . 138 . . . . . . . . Trap . | . . . . . . . . . . . . . . . . . . . . . Miscellaneous . | . . . . . . . . . . . . . . . . . . . . . Route ------- -11/Scrapyard -10/Materials (discovered 5 exits: *Mat x3 / [*Min] / Sub) -10/Mines (discovered 2 exits: *Mat x2) -9/Materials (discovered 5 exits: *Mat x3 / *Min x2) -9/Mines (discovered 2 exits: *Mat / [*Exi]) -8/Materials (discovered 2 exits: *Fac / *Sto) -8/Storage (discovered 2 exits: Fac / *Rec) -8/Recycling (discovered 2 exits: *Fac / Scr) -6/Factory (discovered 2 exits: *Low x2) -6/Lower Caves -6/Lower Caves -5/Factory (discovered 2 exits: *Fac / *Ext) -5/Extension (discovered 2 exits: *Fac / *Cet) -5/Cetus (discovered 2 exits: *Fac / *Arc) -5/Archives (discovered 3 exits: *Fac / *Hub x2) -5/Hub_04(d) (discovered 2 exits: *Fac x2) -4/Factory -4/Waste -4/Factory -3/Research (discovered 2 exits: [*Res] / [*Tes]) -2/Research History --------- Turn | Location | Event 15 | -11/Scrapyard | Discovered new exit (range 16) 113 | -11/Scrapyard | Entered Materials 320 | -10/Materials | Build established: Mutant 324 | -10/Materials | Discovered new exit (range 16) 536 | -10/Materials | Discovered new exit (range 7) 633 | -10/Materials | Discovered new exit (range 16) 785 | -10/Materials | Identified exit to Subcaves 785 | -10/Materials | Identified exit to Materials 903 | -10/Materials | Learned location of 2 exits from Subcaves 913 | -10/Materials | Derelicts attacked the area 988 | -10/Materials | Learned 4 Recycling zone layouts 1275 | -10/Materials | Entered Mines 1322 | -10/Mines | Core integrity fell below 50% 1439 | -10/Mines | Joined a pair of Derelicts in attacking an 0b10 outpost 1682 | -10/Mines | Learned location of 1 exit from Materials 1695 | -10/Mines | Entered Materials 1695 | -9/Materials | Evolved 2 slots: Propulsion x1, Utility x1 1696 | -9/Materials | Identified exit to Mines 1697 | -9/Materials | Identified exit to Materials 1862 | -9/Materials | Learned Storage emergency access door positions 1903 | -9/Materials | Learned location of Zion (-6) 1935 | -9/Materials | Learned location of 1 exit from Recycling 1941 | -9/Materials | Build established: Scavenger-Mutant 1955 | -9/Materials | Learned 2 Storage zone layouts 1968 | -9/Materials | Learned Storage emergency access door positions 2760 | -9/Materials | Destroyed 7 combat bots 2842 | -9/Materials | Entered Mines 2846 | -9/Mines | Assisted by bots powering up and referring to "LRC-V3" 3004 | -9/Mines | Build established: Mutant 3144 | -9/Mines | Deemed a non-threat by the Exiles lab entrance 3144 | -9/Mines | Discovered new exit (range 5) 3392 | -9/Mines | Core integrity fell below 50% 3422 | -9/Mines | Lost 3 parts (2n1w) 3423 | -9/Mines | Lost 5 allies 3450 | -9/Mines | Received a Mining Laser from a helpful Derelict 3541 | -9/Mines | Met a Derelict who couldn't figure out how to use a Trap Extractor 3665 | -9/Mines | Discovered exit to Materials (range 4) 3682 | -9/Mines | Entered Materials 3682 | -8/Materials | Accompanied by 1 ally 3682 | -8/Materials | Evolved 2 slots: Propulsion x1, Utility x1 3683 | -8/Materials | Identified exit to Storage 4580 | -8/Materials | Learned location of Lower Caves (-7) 4619 | -8/Materials | Learned Storage trap positions 4646 | -8/Materials | Learned location of Recycling (-8) 4661 | -8/Materials | Learned 2 Storage zone layouts 4685 | -8/Materials | Learned Storage non-interactive machine intel 4712 | -8/Materials | Learned location of Storage (-8) 4796 | -8/Materials | Discovered new exit (range 8) 4880 | -8/Materials | Entered Storage 4881 | -8/Storage | Identified exit to Recycling 4883 | -8/Storage | Loaded intel: 18 trap records 4885 | -8/Storage | Loaded intel: 29 non-interactive machine locations 5467 | -8/Storage | Lost 3 parts (1n1u1w) 6159 | -8/Storage | Learned location of Extension (-5) 6207 | -8/Storage | Learned Storage trap positions 6219 | -8/Storage | Repaired Med. Treads 6243 | -8/Storage | Learned Storage emergency access door positions 6255 | -8/Storage | Repaired Hrd. Light Armor Plating 6268 | -8/Storage | Learned Storage trap positions 6285 | -8/Storage | Learned 4 Factory zone layouts 6315 | -8/Storage | Learned 2 Storage zone layouts 6346 | -8/Storage | Identified exit to Factory 6370 | -8/Storage | Used back door to open Recycling access 6375 | -8/Storage | Entered Recycling 6376 | -8/Recycling | Identified exit to Scraptown 6812 | -8/Recycling | Learned Factory fabricator intel 6845 | -8/Recycling | Learned 2 Storage zone layouts 6870 | -8/Recycling | Learned Storage stockpile data 6890 | -8/Recycling | Learned Factory garrison access intel 6907 | -8/Recycling | Identified exit to Factory 6964 | -8/Recycling | Learned 4 Recycling zone layouts 7262 | -8/Recycling | Scanned before Scraplab entrance 7362 | -8/Recycling | Entered Factory 7362 | -6/Factory | Evolved 4 slots: Power x1, Utility x3 7364 | -6/Factory | Loaded intel: 6 fabricator locations 7365 | -6/Factory | Loaded intel: 4 garrison access locations 7712 | -6/Factory | Search patrols dispatched 7968 | -6/Factory | Lost 4 parts (1p1n1u1w) 8125 | -6/Factory | Spotted B-75 Beast 8334 | -6/Factory | Lost 4 parts (1p2u1w) 8665 | -6/Factory | Lost 3 parts (1n2u) 8698 | -6/Factory | Core integrity fell below 50% 9158 | -6/Factory | Core integrity fell below 20% 9553 | -6/Factory | Lost 3 parts (1n2u) 9713 | -6/Factory | Identified exit to Lower Caves 9812 | -6/Factory | First assault squad dispatched 9844 | -6/Factory | Entered Lower Caves 10494 | -6/Lower Caves | Ambushed by wild Derelicts 10748 | -6/Lower Caves | Learned 4 Factory zone layouts 10763 | -6/Lower Caves | Discovered new exit (range 6) 10796 | -6/Lower Caves | Entered another Lower Caves area 10797 | -6/Lower Caves | Encountered a Warlord checkpoint 10821 | -6/Lower Caves | Discovered new exit (range 9) 10836 | -6/Lower Caves | Entered Factory 10836 | -5/Factory | Evolved 2 slots: Propulsion x1, Utility x1 10837 | -5/Factory | Identified exit to Factory 11190 | -5/Factory | Build established: Hacker-Mutant 11288 | -5/Factory | Repaired Imp. Carbon-fiber Leg 12006 | -5/Factory | Garrison activated, responded to threat 12040 | -5/Factory | System corruption reached 10% 12102 | -5/Factory | Lost 3 parts (2n1w) 12467 | -5/Factory | Discovered new exit (range 5) 12477 | -5/Factory | Found Hvy. Reflective Plating 12501 | -5/Factory | Entered Extension 12602 | -5/Extension | Rescued a captive Derelict 12604 | -5/Extension | Rescued a captive Derelict 12769 | -5/Extension | Build established: Mutant 12996 | -5/Extension | Rescued a captive Derelict 13031 | -5/Extension | Spotted B-75 Beast 13045 | -5/Extension | Spotted B-75 Beast 13108 | -5/Extension | Destroyed B-75 Beast 13127 | -5/Extension | Destroyed B-75 Beast 13140 | -5/Extension | Lost 7 parts (1p2n3u1w) 13327 | -5/Extension | Lost 3 parts (2u1w) 13832 | -5/Extension | Build established: Commander-Mutant 14007 | -5/Extension | Discovered new exit (range 10) 14013 | -5/Extension | Discovered exit to Factory (range 10) 14025 | -5/Extension | Disrupted transfer network 14083 | -5/Extension | Entered Cetus 14083 | -5/Cetus | Accompanied by 14 allies 14106 | -5/Cetus | Spotted Cetus Guard 14107 | -5/Cetus | Spotted Cetus Guard 14110 | -5/Cetus | Destroyed Cetus Guard 14112 | -5/Cetus | Allies destroyed Cetus Guard 14112 | -5/Cetus | Spotted Cetus Guard 14113 | -5/Cetus | Destroyed Cetus Guard 14113 | -5/Cetus | Spotted Cetus Guard 14116 | -5/Cetus | Allies destroyed Cetus Guard 14263 | -5/Cetus | Discovered new exit (range 15) 14290 | -5/Cetus | Spotted Cetus Guard 14290 | -5/Cetus | Spotted Cetus Guard 14293 | -5/Cetus | Allies destroyed Cetus Guard 14294 | -5/Cetus | Destroyed Cetus Guard 14294 | -5/Cetus | Spotted Cetus Guard 14294 | -5/Cetus | Spotted Cetus Guard 14303 | -5/Cetus | Allies destroyed Cetus Guard 14307 | -5/Cetus | Destroyed Cetus Guard 14319 | -5/Cetus | Discovered exit to Factory (range 15) 14327 | -5/Cetus | Met Revision 17 14337 | -5/Cetus | Lost 4 allies 14611 | -5/Cetus | Entered Archives 14611 | -5/Archives | Accompanied by 10 allies 14670 | -5/Archives | Unable to access archive contents 14675 | -5/Archives | Discovered new exit (range 14) 14705 | -5/Archives | Discovered new exit (range 16) 14736 | -5/Archives | Discovered exit to Factory (range 15) 14887 | -5/Archives | Entered Hub_04(d) 14887 | -5/Hub_04(d) | Accompanied by 9 allies 15110 | -5/Hub_04(d) | Core integrity fell below 50% 15113 | -5/Hub_04(d) | Lost 5 allies 15190 | -5/Hub_04(d) | Lost 4 allies 15354 | -5/Hub_04(d) | Build established: Scavenger-Mutant 15496 | -5/Hub_04(d) | Discovered exit to Factory (range 18) 15692 | -5/Hub_04(d) | Discovered exit to Factory (range 9) 16028 | -5/Hub_04(d) | Entered Factory 16028 | -4/Factory | Evolved 2 slots: Utility x1, Weapon x1 16323 | -4/Factory | Sucked down chute 16323 | -4/Factory | Entered Waste 16324 | -4/Waste | Joined by Warlord forces that had cleared the area 16354 | -4/Waste | Build established: Scavenger-Tank 16803 | -4/Waste | Discovered new exit (range 12) 16907 | -4/Waste | Entered Factory 16907 | -4/Factory | Accompanied by 20 allies 17244 | -4/Factory | Lost 4 allies 17407 | -4/Factory | First assault squad dispatched 17516 | -4/Factory | Garrison activated, responded to threat 17520 | -4/Factory | Lost 3 allies 17554 | -4/Factory | Lost 3 allies 17650 | -4/Factory | High security lockdown imminent 17658 | -4/Factory | Lost 4 allies 17730 | -4/Factory | High security lockdown engaged 17737 | -4/Factory | Discovered new exit (range 18) 17761 | -4/Factory | Core integrity fell below 50% 17775 | -4/Factory | Core integrity fell below 20% 17785 | -4/Factory | Entered Research 17785 | -3/Research | Evolved 2 slots: Propulsion x1, Utility x1 17815 | -3/Research | Lost 19 parts (3p7n5u4w) 17914 | -3/Research | Discovered new exit (range 20) 17985 | -3/Research | Revision forces began assault on 0b10 18020 | -3/Research | Build established: Scavenger-Mutant 18030 | -3/Research | Met up with Revision 17++ 18485 | -3/Research | Research terminal network offline 18509 | -3/Research | Found Prototype Launcher 18513 | -3/Research | Found Prototype Launcher 18531 | -3/Research | Build established: Scavenger-Tank 18637 | -3/Research | Discovered new exit (range 36) 18886 | -3/Research | Entered another Research area 18886 | -2/Research | Evolved 2 slots: Power x1, Weapon x1 19250 | -2/Research | Identified Tactical Quantum Warhead (x2) 19265 | -2/Research | System corruption reached 10% 19304 | -2/Research | Core integrity fell below 50% 19312 | -2/Research | Core integrity fell below 20% 19314 | -2/Research | Destroyed by Y-72 Warden with Railgun Last Messages --------------- 19284_ Penetrated by Slug. 19288_ ALERT: Potential suspicious activity detected, Programmers report to Research Zone 9X. 19293_ W-44 Eye sends out distress signal. 19294_ Impulse Thruster Array destroyed. 19296_ Identified Great Axe. 19300_ C-57 Dissector destroyed. 19300_ Great Axe severed. 19303_ Acquired Great Axe. [Achievement: Hydra] 19303_ Great Axe severed. 19308_ System corrupted: Heat flow error (+282). 19309_ Acquired Great Axe. 19310_ Great Axe severed. 19310_ Acquired Great Axe. 19311_ Penetrated by Slug. 19311_ Slug penetrates Wall. 19313_ Great Axe severed. 19314_ Penetrated by Slug. Map ----- +----------------------------------------------------+ | ?????????????????????????????????????????????????? | | ?????????????????????????????????????????????????? | | ?????????????????????????????????????????????????? | | ?????????????????????????????????????????????????? | | ?????????????????????????????????????????????????? | | ?????????????????????????????????????????????????? | | ?????????????????????????????????????????????????? | | ?????????????????????????????????????????????????? | | ?????????????????????????????????????????????????? | | ?????????????????????????????????????????????????? | | ????????????????????????????? ????????????????? | | ???????????????????????????# ????????????????? | | ???????????????????????????# #???????????????? | | ???????????????????????????# #???????????????? | | ???????????????????????????# #???????????????? | | ???????????????????????????# #?? ???????????? | | ???????????????????????????# #? ????????????? | | ???????????????????????????# # ???????????### | | ???????????????????????????# # ????????????# | | ???????????????????????????+ /?????????????# | | ???????????????????????????# #?????????????# | | ???????????????????????????# #?????????????# | | ???????????????????????????# #???????????### | | ???????????????????????????# #??????????? +? | | ?????????????????########### ##########??# #?? | | ?????????????????# @c# # """ #??# #?? | | ?????????????????# ] Yccppp + """ #??# #?? | | ?????????????????# # # """ #??# #?? | | ?????????????????# """# w # #### ### | | ?????????????????# T"# # + | | ?????????????????# !] """# # ######## | | ?????????????????# ]] # # #??????? | | ?????????????????# ]! # # #??????? | | ?????????????????##### ##### # #??????? | | ?????????????????????##????# ##########??????? | | ???????????????????????????# #???????????????? | | ???????????????????????????# #???????????????? | | ???????????????????????????# #???????????????? | | ???????????????????????????# #???????????????? | | ???????????????????????????# #???????????????? | | ???????????????????????????# #???????????????? | | ???????????????????????????? #???????????????? | | ???????????????????????????? ?????????????????? | | ?????????????????????????????????????????????????? | | ?????????????????????????????????????????????????? | | ?????????????????????????????????????????????????? | | ?????????????????????????????????????????????????? | | ?????????????????????????????????????????????????? | | ?????????????????????????????????????????????????? | | ?????????????????????????????????????????????????? | +----------------------------------------------------+ Best States ------------- Heat Dissipation 68 Energy Generation 61 Energy Capacity 1050 Matter Stores 500 Matter Capacity 500 Sight Range 20 Robot Scan Range 14 Terrain Scan Range 16 Terrain Scan Density 210 Jamming Range 16 Armor Coverage 1050 Resistance: KI 20 Resistance: TH 25 Resistance: EX 25 Resistance: EM 15 Power Shielding 33 Weapon Shielding 33 Point Defense Rating 80 Evasion (%) 61 Targeting Accuracy 25 Target Analysis 6 Core Analysis 6 Recoil Reduction 6 Particle Charging 15 Kinecelleration 40 Offensive Hacking 14 Defensive Hacking 10 Item Schematics ----------------- None Robot Schematics ------------------ None Fabricated ------------ Nothing Repaired ---------- Med. Treads | 10% | -8/Storage Hrd. Light Armor Plating | 1% | -8/Storage Imp. Carbon-fiber Leg | 1% | -5/Factory Studied --------- Imp. Light Cannon | -9/Materials | Hacked Lgt. Treads | -9/Materials | Hacked Lgt. Assault Rifle | -9/Materials | Hacked Sml. Laser | -9/Materials | Hacked Alien Tech Used ----------------- None Achievements -------------- Hydra Network Effect No Room For Error Physics Protects Revolutionary Research Challenges ------------ None Game ------ Seed MetamassSwarmCore Manual? 0 Play Time 02:08:13 Cumulative 116.1 hours Start 2025.10.28 @ 17:28:01 End 2025.10.28 @ 19:41:40 Sessions 3 Manual Loads 0 Difficulty Rogue Special Mode None Game No. 306 Rogue 304 Adventurer 2 Explorer 0 Win Type - Total 1 Types 1/0/0/0/0/0/0/0/0/0 Lore% 78 Gallery% 61 Achievement% 37 Wizard Run 0 Options --------- Layout 2 ASCII 0 Keyboard 0 Movement Numpad Keybinds 0 Fullscreen 2 Font 24/Smallcaps Map View 50x44 Zoom Use 0% Tactical HUD 1 Map Filters NONE Filters NONE Steam 1 RUN: 03d4408a-8c4a-4ef8-ab2d-a85ff5b0091c